bitfinex-derivatives/quotes_ETHF0:USTF0_20260203
["timestamp","ask_amount","ask_price","bid_price","bid_amount"]
[1770135206491,1.41668166,2281.1,2279.9,0.00499354]
[1770135206697,1.41668166,2281.1,2279.9,2.57899354]
[1770135208091,1.19182209,2281.0,2279.9,2.57899354]
[1770135208791,1.41123209,2281.0,2279.9,2.57899354]
[1770135208992,1.19182209,2280.8,2279.9,2.57899354]
[1770135209197,1.19182209,2280.6,2279.6,4.389]
[1770135209394,1.19182209,2280.6,2279.7,1.17931421]
[1770135209596,1.19182209,2280.6,2279.6,4.389]
[1770135209798,1.19182209,2280.6,2279.5,2.574]
[1770135210297,1.19182209,2280.6,2279.5,2.57901947]
[1770135210494,1.19182209,2280.1,2278.6,2.61178368]
[1770135210690,1.19182209,2279.7,2278.2,1.17931421]
[1770135210893,1.19182209,2279.6,2278.4,1.17931421]
[1770135211090,1.19182209,2279.5,2278.3,2.574]
[1770135211289,1.19182209,2279.3,2278.3,2.574]
[1770135211490,1.19707078,2279.3,2278.3,2.57944144]
[1770135211893,1.41141209,2279.1,2278.3,0.00190965]
[1770135212898,1.41144209,2278.8,2277.5,1.17931421]
[1770135213201,1.41144209,2278.8,2277.6,2.574]
[1770135213999,1.41144209,2278.8,2277.7,1.17931421]
[1770135214000,1.19182209,2278.8,2277.7,1.17931421]
[1770135217698,1.19182209,2278.8,2277.6,0.00516476]
[1770135217896,1.19182209,2278.0,2276.5,1.17931421]
[1770135218098,1.19182209,2278.0,2276.8,3.75431421]
[1770135218299,1.41153209,2277.9,2276.8,3.75431421]
[1770135218495,0.21971,2277.9,2276.9,1.17931421]
[1770135218694,1.19182209,2278.2,2276.9,1.17931421]
[1770135218900,1.19182209,2278.2,2276.9,1.1847411]
[1770135221206,1.19182209,2278.8,2276.9,1.4045311]
[1770135221500,1.19182209,2278.8,2277.1,1.17931421]
[1770135222103,1.19182209,2278.8,2277.1,1.39909421]
[1770135222303,0.22481869,2279.3,2277.7,1.17931421]
[1770135222501,0.22481869,2279.3,2277.9,1.17931421]
[1770135222699,0.00524869,2279.3,2277.9,1.17931421]
[1770135222900,0.00524869,2279.3,2278.1,1.17931421]
[1770135223908,1.19182209,2280.2,2278.5,1.17931421]
[1770135224104,1.19182209,2280.2,2278.7,1.17931421]
[1770135224407,1.19182209,2280.2,2278.6,2.576]
[1770135224408,1.19182209,2280.2,2278.9,1.17931421]
[1770135224605,0.21947,2280.4,2278.9,1.17931421]
[1770135224800,1.19710031,2280.4,2278.9,1.1831636]
[1770135225004,1.19710031,2280.4,2279.1,1.17931421]
[1770135225709,1.19710031,2280.4,2279.2,6.966]
[1770135226109,1.19710031,2280.4,2279.3,1.17931421]
[1770135228607,0.00527822,2280.4,2279.3,1.17931421]
[1770135229808,0.21941,2281.0,2279.5,1.17931421]
[1770135229809,1.41123209,2281.0,2279.5,1.17931421]
[1770135230712,1.36639504,2280.8,2279.6,3.81293342]
[1770135230908,1.37202235,2280.8,2279.6,2.575]
[1770135231112,1.14696504,2280.6,2279.3,1.23793342]
[1770135231308,1.14696504,2280.6,2279.4,6.965]
[1770135231710,1.36641504,2280.6,2279.2,4.39]
[1770135232013,1.36641504,2280.6,2279.3,2.575]
[1770135232514,1.14696504,2280.4,2279.3,2.575]
[1770135232714,1.14696504,2280.4,2279.0,1.23793342]
[1770135232918,1.14696504,2280.4,2279.1,6.965]
[1770135233615,1.14696504,2280.4,2279.1,8.18583615]
[1770135235213,1.14696504,2280.4,2279.2,1.22083615]
[1770135235417,1.18022212,2280.2,2278.9,0.00384939]
[1770135235714,1.18022212,2280.2,2279.0,2.575]
[1770135236117,1.18022212,2279.6,2278.9,0.00384939]
[1770135238817,1.18022212,2280.4,2278.9,1.22468554]
[1770135239020,1.18022212,2280.7,2279.3,1.44039615]
[1770135239220,1.18022212,2280.7,2279.5,1.22083615]
[1770135239417,0.00562731,2280.8,2279.5,1.44037615]
[1770135239617,1.18022212,2281.3,2279.7,1.22083615]
[1770135240314,38.33435709,2282.5,2280.1,1.22083615]
[1770135240521,0.21925,2282.7,2280.5,1.22083615]
[1770135240721,0.21925,2282.6,2280.7,1.22083615]
[1770135241018,38.33435709,2282.3,2280.6,2.575]
[1770135241217,38.33435709,2282.2,2280.5,0.00526237]
[1770135241423,0.21936,2281.5,2280.5,0.00526237]
[1770135241919,0.21937,2281.4,2280.5,0.00526237]
[1770135242121,0.21939,2281.2,2280.0,2.574]
[1770135242320,1.18022212,2281.1,2280.0,2.574]
[1770135243219,1.18022212,2280.9,2280.0,0.00429717]
[1770135244817,1.39964212,2280.9,2279.6,2.574]
[1770135245018,1.18022212,2280.4,2278.7,4.389]
[1770135245319,0.21952,2279.8,2278.3,4.389]
[1770135245516,1.18022212,2279.7,2278.4,3.79483615]
[1770135245912,1.18022212,2279.7,2278.4,3.80041896]
[1770135247014,1.18022212,2279.7,2278.4,0.00558281]
[1770135247222,1.18022212,2279.7,2278.4,2.57958281]
[1770135247424,1.18022212,2279.6,2278.4,2.57958281]
[1770135248419,0.69601302,2279.7,2277.9,4.389]
[1770135248420,1.18022212,2279.3,2277.9,4.389]
[1770135248724,1.18022212,2279.3,2277.9,6.963]
[1770135249319,1.18022212,2279.3,2277.9,8.18383615]
[1770135249524,0.2196,2279.0,2278.0,1.22083615]
[1770135249924,1.39982212,2279.0,2278.0,1.22083615]
[1770135250718,1.39982212,2279.0,2277.9,6.96644316]
[1770135251323,0.00449235,2279.3,2278.0,1.22083615]
[1770135251823,1.18471447,2279.3,2278.0,1.22083615]
[1770135252625,1.18022212,2279.1,2278.0,3.79583615]
[1770135252820,1.18022212,2279.1,2278.1,1.22083615]
[1770135253020,0.21958,2279.2,2278.1,1.22083615]
[1770135253420,0.21958,2279.2,2278.1,3.79583615]
[1770135253421,1.39980212,2279.2,2278.1,3.79583615]
[1770135255618,1.39980212,2279.2,2277.9,0.00344316]
[1770135255824,1.18022212,2279.0,2278.0,2.575]
[1770135256023,1.39983212,2279.0,2278.0,2.575]
[1770135256324,1.18022212,2278.9,2277.9,0.00344316]
[1770135256519,1.18022212,2278.3,2277.2,1.22083615]
[1770135256725,1.18022212,2278.3,2277.2,2.575]
[1770135256916,5.13373156,2278.8,2276.9,1.22083615]
[1770135256917,1.18022212,2278.1,2276.9,1.22083615]
[1770135257116,1.18022212,2278.1,2277.0,1.22083615]
[1770135257520,1.18022212,2278.1,2277.0,1.22431055]
[1770135257828,1.39991212,2278.1,2277.0,0.0034744]
[1770135259225,1.18022212,2277.7,2276.3,1.22083615]
[1770135259522,1.18022212,2277.9,2276.4,1.22083615]
[1770135260323,1.18351642,2277.9,2276.4,1.22483616]
[1770135261022,0.0032943,2277.9,2276.4,1.22483616]
[1770135261423,0.0032943,2277.9,2276.6,1.99655377]
[1770135262025,0.0032943,2277.9,2276.6,2.21638377]
[1770135262425,0.0032943,2277.9,2276.8,1.99655377]
[1770135263928,0.0032943,2277.9,2277.0,1.99655377]
[1770135264330,2.04091414,2278.5,2277.0,1.99655377]
[1770135264724,0.21965,2278.5,2277.0,2.21633377]
[1770135265032,2.04091414,2278.5,2277.2,1.99655377]
[1770135265226,0.21966,2278.4,2277.2,1.99655377]
[1770135265432,1.82510342,2278.5,2276.9,1.99655377]
[1770135265433,2.04096414,2278.0,2276.9,1.99655377]
[1770135266029,1.82126414,2278.0,2276.9,1.99655377]
[1770135267535,2.04093414,2278.3,2276.9,1.99655377]
[1770135267835,1.82510342,2278.5,2276.9,2.21635377]
[1770135269140,0.21966,2278.4,2276.9,2.21635377]
[1770135269340,2.04092414,2278.4,2276.9,2.21635377]
[1770135270938,1.82126414,2278.2,2277.0,2.576]
[1770135271143,1.82126414,2278.2,2277.0,4.57255377]
[1770135271738,1.82126414,2278.2,2277.0,1.99655377]
[1770135271944,1.82126414,2278.0,2277.0,1.99655377]
[1770135272242,1.82126414,2278.0,2277.0,4.57255377]
[1770135272837,1.82126414,2278.0,2277.1,1.99655377]
[1770135273744,40.15946051,2278.5,2277.1,1.99655377]
[1770135273941,0.00383928,2278.5,2277.1,1.99655377]
[1770135274143,0.00383928,2278.5,2277.4,1.99655377]
[1770135274739,1.82510342,2278.5,2277.4,2.576]
[1770135275144,2.04475342,2278.5,2277.4,2.576]
[1770135275345,1.82126414,2278.3,2277.3,1.99655377]
[1770135275540,1.82126414,2278.3,2277.3,4.57255377]
[1770135275746,1.82126414,2278.3,2277.4,1.99655377]
[1770135276447,1.82126414,2278.3,2277.3,2.576]
[1770135276747,1.82126414,2278.3,2277.1,1.99655377]
[1770135277147,1.82126414,2278.0,2276.8,1.99655377]
[1770135277349,2.04096414,2278.0,2276.9,1.99655377]
[1770135278048,1.82126414,2277.2,2276.4,0.00400001]
[1770135278442,1.82126414,2277.6,2276.5,1.99655377]
[1770135279142,1.82126414,2277.3,2276.4,0.00400001]
[1770135279345,2.5771964,2277.4,2276.4,0.00400001]
[1770135279346,1.82126414,2277.1,2276.4,0.00400001]
[1770135279940,4.39846054,2277.1,2276.4,0.00400001]
[1770135280145,1.82126414,2277.0,2276.4,0.00400001]
[1770135281143,1.82126414,2277.0,2276.0,4.57355377]
[1770135281350,1.82126414,2277.0,2276.1,1.99655377]
[1770135281656,2.5771964,2277.1,2276.1,1.99655377]
[1770135281948,1.82126414,2277.1,2276.1,1.99655377]
[1770135282151,1.82126414,2277.1,2276.1,2.00111179]
[1770135282846,1.82126414,2277.1,2276.1,0.00455802]
[1770135283050,4.39846054,2277.1,2276.1,0.00455802]
[1770135283256,1.82126414,2277.0,2276.1,0.00455802]
[1770135284248,1.82126414,2276.7,2275.3,1.99655377]
[1770135284446,1.82126414,2276.6,2275.3,1.99655377]
[1770135284851,2.04109414,2276.6,2275.3,1.99655377]
[1770135285054,1.82126414,2276.4,2275.3,1.99655377]
[1770135285250,2.04532488,2276.4,2275.3,2.0014397]
[1770135285548,1.82126414,2276.2,2275.3,2.0014397]
[1770135285752,2.04112414,2276.3,2275.3,2.0014397]
[1770135286353,0.00421074,2276.4,2275.3,2.0014397]
[1770135287146,0.00421074,2276.4,2275.3,2.2213897]
[1770135289951,0.2198,2276.9,2275.5,1.99655377]
[1770135290355,4.39555078,2277.7,2276.2,2.45301732]
[1770135290651,2.26315623,2277.7,2276.4,2.45301732]
[1770135290847,2.38896987,2277.5,2276.4,2.45301732]
[1770135291052,2.60873987,2277.3,2276.0,2.45301732]
[1770135291257,2.60873987,2277.3,2276.1,2.578]
[1770135291755,2.39288445,2277.7,2276.5,2.45301732]
[1770135292257,2.38896987,2277.6,2276.5,2.45301732]
[1770135293357,2.61261445,2277.7,2276.5,2.45301732]
[1770135293751,2.39288445,2277.7,2276.5,2.45301732]
[1770135295862,0.00391458,2277.7,2276.5,2.67284732]
[1770135298162,0.00391458,2277.7,2276.7,2.50480293]
[1770135299569,0.00391458,2277.7,2276.8,2.577]
[1770135299768,2.57428664,2278.4,2277.2,2.50480293]
[1770135300069,2.57428664,2278.4,2276.8,2.577]
[1770135300070,2.41966729,2278.8,2277.4,2.50480293]
[1770135300361,2.41966729,2278.8,2277.6,2.50480293]
[1770135300568,2.63928729,2278.8,2277.6,2.50480293]
[1770135300761,2.41966729,2278.2,2277.6,0.00484974]
[1770135301068,0.2197,2278.0,2276.9,2.577]
[1770135301269,2.41966729,2277.9,2277.0,2.50480293]
[1770135301664,4.99395393,2278.3,2277.0,2.50480293]
[1770135301862,2.41966729,2278.4,2277.0,2.72459293]
[1770135302066,2.41966729,2278.0,2277.0,0.00438966]
[1770135302261,2.41966729,2278.0,2277.0,2.50919259]
[1770135302668,2.41966729,2278.0,2277.0,0.00438966]
[1770135303066,2.41966729,2277.5,2276.1,2.50480293]
[1770135303269,2.41966729,2277.2,2276.1,2.50480293]
[1770135303568,2.41966729,2277.5,2276.1,2.50480293]
[1770135304172,2.4240032,2277.5,2276.1,2.50916152]
[1770135304573,0.00433591,2277.5,2276.1,2.50916152]
[1770135304775,0.00433591,2277.5,2276.3,2.72466293]
[1770135305074,2.41966729,2278.2,2276.7,2.72462293]
[1770135305265,2.41966729,2278.2,2276.9,2.50480293]
[1770135305676,2.41966729,2278.2,2276.9,2.72460293]
[1770135305969,2.42477278,2278.2,2276.9,5.08180293]
[1770135306172,2.64445278,2278.2,2276.9,5.08180293]
[1770135306377,2.41966729,2278.1,2276.9,2.577]
[1770135308074,2.41966729,2277.9,2276.4,2.50480293]
[1770135308274,2.41966729,2277.8,2276.4,5.08180293]
[1770135308475,2.41966729,2277.8,2276.5,2.50480293]
[1770135308772,4.99395393,2277.8,2276.5,2.50480293]
[1770135308976,2.41966729,2277.7,2276.5,2.50480293]
[1770135309274,4.99395393,2278.0,2276.5,2.50480293]
[1770135309578,0.00510549,2278.2,2276.8,2.50480293]
[1770135309772,2.42477278,2278.2,2276.8,2.50480293]
[1770135311077,2.42477278,2278.2,2276.8,2.72461293]
[1770135311378,2.64445278,2278.2,2276.8,2.50480293]
[1770135311676,2.63936729,2278.0,2276.8,2.50480293]
[1770135313682,2.63937729,2277.8,2276.7,2.577]
[1770135314182,2.41966729,2277.6,2276.3,5.08180293]
[1770135315080,2.41966729,2277.5,2276.3,5.08180293]
[1770135315276,2.41966729,2277.4,2276.3,5.08180293]
[1770135315477,2.41966729,2277.4,2276.4,2.50480293]
[1770135317380,2.57428664,2277.5,2276.4,2.50480293]
[1770135317979,2.57428664,2277.6,2276.4,2.50480293]
[1770135318181,2.57428664,2277.7,2276.4,2.72464293]
[1770135318577,2.57428664,2277.9,2276.5,5.11991382]
[1770135318783,2.57428664,2277.9,2276.6,2.50480293]
[1770135318983,4.99395393,2277.9,2276.6,2.50480293]
[1770135319684,2.57428664,2277.8,2276.6,2.50480293]
[1770135319982,4.99395393,2277.9,2276.7,2.50480293]
[1770135320676,2.57428664,2278.1,2277.0,2.51557238]
[1770135320879,2.57428664,2278.1,2277.2,2.51557238]
[1770135321075,4.99878758,2278.0,2277.1,2.577]
[1770135321778,4.99878758,2278.0,2277.1,5.09257238]
[1770135322178,2.57428664,2278.1,2277.2,2.51557238]
[1770135322381,2.42450094,2278.1,2277.1,2.577]
[1770135322580,2.42450094,2278.0,2277.1,2.577]
[1770135322983,40.90864373,2278.1,2277.2,2.51557238]
[1770135323179,0.00510549,2278.2,2277.2,2.51557238]
[1770135323578,2.42450094,2278.1,2277.2,2.51557238]
[1770135323784,2.42450094,2278.1,2277.2,5.09257238]
[1770135324687,2.42450094,2278.0,2277.2,5.09257238]
[1770135326087,5.17535643,2279.1,2277.9,1.70221699]
[1770135326293,2.548149,2279.4,2278.3,2.62610347]
[1770135326480,0.43762503,2279.9,2279.3,3.93915521]
[1770135326784,0.21949,2280.1,2279.3,5.25220695]
[1770135326990,0.21949,2280.1,2279.4,5.25220695]
[1770135327189,0.21949,2280.1,2279.3,0.00459476]
[1770135327190,0.22500012,2280.1,2279.3,0.00459476]
[1770135327492,0.00551012,2280.1,2279.3,0.00459476]
[1770135328485,2.42450094,2280.0,2279.3,0.00459476]
[1770135335295,2.42450094,2280.0,2278.8,2.576]
[1770135335989,2.42450094,2280.0,2278.3,5.25220695]
[1770135336194,2.42450094,2279.7,2278.1,5.25220695]
[1770135336395,2.42450094,2279.4,2278.1,0.0037105]
[1770135336591,2.42450094,2279.3,2278.1,0.0037105]
[1770135337589,2.42450094,2279.3,2278.2,2.51557238]
[1770135337792,2.42450094,2279.3,2278.2,7.76777933]
[1770135338189,2.42450094,2279.3,2278.3,7.76777933]
[1770135338394,2.42450094,2279.3,2278.4,7.76777933]
[1770135338691,2.42450094,2279.3,2278.3,7.82720695]
[1770135338889,2.42450094,2279.3,2278.4,8.06275679]
[1770135339196,2.42450094,2279.3,2278.5,5.54718441]
[1770135339395,2.42450094,2279.3,2278.6,5.54718441]
[1770135339595,2.42450094,2279.3,2278.4,2.51557238]
[1770135339797,2.42450094,2279.7,2278.5,8.04859977]
[1770135340096,2.42450094,2279.7,2278.6,5.53302739]
[1770135340295,2.42450094,2279.7,2278.7,5.53302739]
[1770135340494,2.42450094,2279.7,2278.5,2.51557238]
[1770135340694,2.42450094,2279.7,2278.6,5.53285535]
[1770135340895,2.42450094,2279.7,2278.5,2.51557238]
[1770135341098,2.42450094,2279.7,2278.6,5.53285788]
[1770135341295,2.42450094,2279.7,2278.7,5.53285788]
[1770135341597,2.42450094,2279.7,2278.5,2.51557238]
[1770135341799,2.42450094,2279.7,2278.6,5.53243386]
[1770135342096,2.42450094,2279.7,2278.7,5.53243386]
[1770135342301,2.42450094,2279.7,2278.4,7.76777933]
[1770135342596,2.42450094,2279.7,2278.5,5.53302779]
[1770135342796,2.42450094,2279.7,2278.6,5.53302779]
[1770135342997,2.42450094,2279.7,2278.7,5.53302779]
[1770135343196,2.42450094,2279.7,2278.8,5.53302779]
[1770135343396,2.42450094,2279.7,2278.5,7.76777933]
[1770135343597,2.42450094,2279.7,2278.6,5.53373544]
[1770135343798,2.64403094,2279.7,2278.7,5.53390826]
[1770135343990,2.64403094,2279.7,2278.4,5.25220695]
[1770135344193,2.64403094,2279.7,2278.5,5.53632405]
[1770135344395,2.64403094,2279.7,2278.6,5.53632405]
[1770135344595,2.64403094,2279.7,2278.7,5.53632405]
[1770135344890,2.64403094,2279.7,2278.4,5.25220695]
[1770135345093,2.64403094,2279.7,2278.5,5.53638787]
[1770135345290,2.64403094,2279.7,2278.6,5.53638787]
[1770135345497,2.64403094,2279.7,2278.7,5.53638787]
[1770135345699,2.42450094,2279.5,2278.3,2.575]
[1770135345897,2.42450094,2279.5,2278.4,5.51440768]
[1770135346097,2.42450094,2279.3,2278.5,5.51440768]
[1770135346299,2.42450094,2279.3,2278.6,5.51440768]
[1770135346500,2.42450094,2279.1,2278.1,0.0037105]
[1770135346695,2.42450094,2279.1,2278.2,5.51856004]
[1770135346896,2.42450094,2279.1,2278.3,5.51856004]
[1770135347092,2.42450094,2279.1,2278.1,0.0037105]
[1770135347301,2.42450094,2279.1,2278.2,5.39937407]
[1770135347500,2.42450094,2279.1,2278.3,5.39937407]
[1770135347700,2.42450094,2279.1,2278.1,0.0037105]
[1770135347901,2.42450094,2279.1,2278.2,5.39886725]
[1770135348103,2.42450094,2279.1,2278.3,5.39886725]
[1770135348301,2.42450094,2279.1,2278.1,0.0037105]
[1770135348503,2.42450094,2279.1,2278.2,5.4036863]
[1770135348699,2.42450094,2279.1,2278.1,0.0037105]
[1770135348899,2.64409094,2279.1,2278.1,0.0037105]
[1770135349602,2.42450094,2278.9,2278.1,0.0037105]
[1770135351197,1.70221699,2279.5,2278.3,2.43251963]
[1770135351198,2.40960975,2279.3,2278.3,2.43251963]
[1770135351396,2.62915975,2279.5,2278.4,7.77805897]
[1770135351604,2.62915975,2279.5,2278.5,5.34553934]
[1770135351802,2.62915975,2279.5,2278.6,5.34553934]
[1770135352002,2.62915975,2279.5,2278.4,2.43251963]
[1770135352204,2.62915975,2279.5,2278.5,5.34797241]
[1770135352402,2.40960975,2279.2,2278.6,5.34797241]
[1770135352599,2.62919975,2279.2,2278.1,5.25591745]
[1770135352801,2.62919975,2279.2,2278.2,5.39024832]
[1770135353102,2.62919975,2279.2,2278.3,5.39024832]
[1770135353301,2.40960975,2278.9,2278.1,0.0037105]
[1770135354098,2.3120714,2278.5,2277.7,5.25220695]
[1770135354300,2.3120714,2278.5,2277.8,5.37867714]
[1770135354602,2.3120714,2278.5,2277.9,5.37867714]
[1770135354801,2.3120714,2278.5,2277.6,5.25220695]
[1770135355004,2.3120714,2278.5,2277.7,5.31566512]
[1770135355304,2.31770046,2278.5,2277.8,5.31566512]
[1770135355509,2.31770046,2278.5,2277.9,5.31566512]
[1770135355706,2.31770046,2278.5,2277.7,0.00316277]
[1770135356104,0.00562906,2278.5,2277.7,2.31123379]
[1770135357005,0.00562906,2278.5,2277.8,2.30807102]
[1770135358199,0.00562906,2278.5,2277.9,2.30807102]
[1770135358405,0.21961,2278.9,2277.9,2.30807102]
[1770135358605,0.21961,2278.9,2278.0,2.30807102]
[1770135359109,0.21961,2278.9,2278.1,2.30807102]
[1770135359309,0.2235319,2278.9,2278.1,2.30807102]
[1770135359904,0.0039219,2278.9,2278.1,2.30807102]
[1770135360109,0.21956,2279.4,2278.4,2.30807102]
[1770135360708,2.0896693,2279.3,2278.1,2.30807102]
[1770135360908,0.2196,2279.0,2278.1,2.30807102]
[1770135361109,0.00474246,2279.0,2278.1,2.30807102]
[1770135361809,0.00474246,2279.0,2277.9,2.30807102]
[1770135361810,2.09441176,2279.0,2277.9,2.30807102]
[1770135362010,0.21962,2278.8,2277.9,2.30807102]
[1770135363613,0.21966,2278.4,2277.7,2.31123379]
[1770135364511,2.27062606,2278.4,2277.7,0.00316277]
[1770135364713,0.21966,2278.4,2277.7,2.31123379]
[1770135367514,6.968,2278.8,2277.7,2.31123379]
[1770135367515,0.21961,2278.9,2277.7,2.31123379]
[1770135367715,0.21961,2278.9,2277.9,2.30807102]
[1770135367914,0.21964,2278.6,2277.9,2.30807102]
[1770135371921,0.00474246,2279.0,2278.1,2.30807102]
[1770135372920,0.22434246,2279.0,2278.1,2.30807102]
[1770135374021,0.22434246,2279.0,2278.2,5.02882568]
[1770135374215,0.22434246,2279.0,2278.2,2.30807102]
[1770135374418,0.21962,2278.8,2278.2,2.30807102]
[1770135375223,0.00474246,2279.0,2278.2,2.30807102]
[1770135375718,0.00474246,2279.0,2278.4,2.30807102]
[1770135376123,0.22434246,2279.0,2278.4,2.30807102]
[1770135376720,2.07157322,2279.0,2278.1,3.41507574]
[1770135376919,0.21965,2278.5,2277.8,2.30807102]
[1770135377124,0.21965,2278.5,2277.9,7.26814988]
[1770135377326,0.21965,2278.5,2277.9,2.30807102]
[1770135379226,0.21966,2278.4,2277.7,0.00316277]
[1770135379426,0.21966,2278.4,2277.7,2.31123379]
[1770135379828,0.21968,2278.2,2277.7,0.00316277]
[1770135380420,2.26531851,2278.1,2277.7,0.00316277]
[1770135380724,0.21969,2278.1,2277.4,2.30807102]
[1770135381626,0.21969,2278.1,2277.4,2.31223062]
[1770135381928,2.04562851,2278.5,2277.4,2.31223062]
[1770135381929,0.21965,2278.5,2277.4,2.31223062]
[1770135382125,4.392,2278.9,2277.8,2.48898116]
[1770135382423,4.392,2278.9,2278.0,2.48898116]
[1770135382824,2.01657896,2279.5,2278.2,2.48898116]
[1770135382825,0.21955,2279.5,2278.2,2.48898116]
[1770135383024,2.2984667,2279.8,2278.4,5.25220695]
[1770135383227,2.2984667,2279.8,2278.6,2.48898116]
[1770135383422,2.576,2280.2,2278.6,2.48898116]
[1770135383423,2.2984667,2280.1,2278.7,7.22290785]
[1770135383728,4.82371648,2280.3,2279.0,2.48898116]
[1770135383729,2.2984667,2280.2,2279.0,2.48898116]
[1770135383931,2.30325524,2280.2,2279.2,2.48898116]
[1770135384228,2.5179767,2279.9,2279.0,0.00345052]
[1770135384626,2.5179767,2279.9,2279.0,2.49243168]
[1770135384922,0.00478854,2280.2,2279.0,2.49243168]
[1770135385127,2.2984667,2280.0,2279.0,2.49243168]
[1770135385428,2.5179767,2280.0,2279.0,2.49243168]
[1770135386622,0.21951,2280.0,2279.0,2.49243168]
[1770135386821,0.00478854,2280.2,2279.0,2.49243168]
[1770135386822,2.5179767,2279.9,2279.0,2.49243168]
[1770135387022,2.5179767,2279.9,2279.0,0.00345052]
[1770135387223,2.2984667,2279.7,2279.0,0.00345052]
[1770135387419,2.5180067,2279.7,2279.0,0.00345052]
[1770135388124,0.21954,2279.7,2279.1,2.48898116]
[1770135388529,2.2984667,2280.1,2279.1,2.48898116]
[1770135390131,0.2195,2280.0,2279.1,2.48898116]
[1770135390331,0.00478854,2280.2,2279.1,2.48898116]
[1770135390724,2.30325524,2280.2,2279.1,2.48898116]
[1770135390931,0.00478854,2280.2,2279.1,2.48898116]
[1770135391526,0.41864972,2280.7,2279.3,2.48898116]
[1770135391732,0.21942,2280.9,2279.4,2.48898116]
[1770135392033,0.21942,2280.9,2279.7,2.48898116]
[1770135392630,0.22373068,2280.9,2279.7,2.48898116]
[1770135393833,0.00431068,2280.9,2279.7,9.49852312]
[1770135394033,0.21936,2281.5,2279.9,2.48898116]
[1770135394233,0.6354683,2281.5,2279.9,2.48898116]
[1770135394435,0.21937,2281.4,2279.9,2.48898116]
[1770135394731,4.61033,2281.8,2280.1,2.48898116]
[1770135394940,2.2984667,2282.2,2280.6,2.48898116]
[1770135395129,2.5178267,2281.5,2280.1,2.48898116]
[1770135395329,2.5178767,2281.0,2280.1,2.48898116]
[1770135395528,0.21944,2280.7,2279.6,2.48898116]
[1770135395735,2.5178667,2281.1,2279.6,2.48898116]
[1770135395939,2.52257187,2281.1,2279.6,2.49432971]
[1770135396235,0.21941,2281.0,2279.6,2.49432971]
[1770135397237,2.2984667,2280.9,2279.6,2.49432971]
[1770135397435,0.21946,2280.5,2279.6,2.49432971]
[1770135397638,2.5179267,2280.5,2279.6,2.49432971]
[1770135397833,2.5179267,2280.5,2279.6,0.00534855]
[1770135398041,2.2984667,2280.4,2279.6,0.00534855]
[1770135398238,2.5179367,2280.4,2279.3,2.48898116]
[1770135398540,2.2984667,2280.1,2279.0,2.48898116]
[1770135399040,2.2984667,2280.1,2278.7,6.87898116]
[1770135399235,0.21954,2279.6,2278.7,2.49260248]
[1770135399440,2.2984667,2279.5,2278.7,2.49260248]
[1770135399742,2.30270097,2279.5,2278.7,2.49260248]
[1770135400634,2.30270097,2279.5,2278.0,5.06298116]
[1770135400635,2.2984667,2279.3,2278.0,5.06298116]
[1770135400843,2.2984667,2279.3,2278.0,2.48898116]
[1770135400844,2.5180767,2278.9,2278.0,2.48898116]
[1770135401041,2.5180767,2278.9,2277.5,2.48898116]
[1770135401641,2.5180767,2278.9,2277.5,2.49268805]
[1770135402345,2.5180867,2278.8,2277.5,2.49268805]
[1770135402544,2.2984667,2278.5,2277.5,0.00370689]
[1770135402738,2.5181467,2278.2,2277.5,0.00370689]
[1770135404239,2.2984667,2277.9,2276.8,2.48898116]
[1770135404438,0.21973,2277.7,2276.8,2.48898116]
[1770135405234,0.22512888,2277.7,2276.8,2.49460446]
[1770135405643,2.52359558,2277.7,2276.8,0.0056233]
[1770135406140,0.22512888,2277.7,2276.8,2.49460446]
[1770135406541,2.52359558,2277.7,2276.8,0.0056233]
[1770135406740,2.2984667,2277.5,2276.2,2.48898116]
[1770135407745,2.2984667,2277.5,2276.2,2.49244783]
[1770135407947,0.21975,2277.4,2276.2,2.49244783]
[1770135408143,2.5182167,2277.4,2276.2,2.49244783]
[1770135408544,0.21975,2277.4,2276.2,2.49244783]
[1770135409945,2.5182167,2277.4,2276.2,2.49244783]
[1770135410145,2.2984667,2277.2,2276.2,2.49244783]
[1770135410345,2.5182367,2277.2,2276.2,2.49244783]
[1770135410939,0.21978,2277.1,2276.2,2.41380769]
[1770135411136,2.76247464,2277.1,2276.2,2.41380769]
[1770135411341,2.76247464,2277.1,2276.2,0.00346667]
[1770135411542,2.54269464,2276.9,2276.2,0.00346667]
[1770135411847,2.76250464,2276.8,2275.7,2.41034102]
[1770135412448,2.54269464,2276.4,2275.2,4.393]
[1770135412649,6.969,2277.1,2274.5,5.47223695]
[1770135412650,2.76256464,2276.2,2275.1,2.41034102]
[1770135412950,2.76258464,2276.0,2275.1,0.00343142]
[1770135413143,2.76588125,2276.0,2275.1,0.00343142]
[1770135413343,2.54269464,2275.4,2274.2,2.41034102]
[1770135413543,0.21999,2275.0,2273.8,2.4359225]
[1770135413742,0.22001,2274.8,2273.7,0.22196456]
[1770135413946,2.577,2275.1,2272.9,0.02204329]
[1770135413947,2.4642905,2273.8,2272.9,0.02204329]
[1770135414145,2.4642905,2273.8,2271.8,6.50285866]
[1770135414146,0.22015,2273.3,2272.2,2.4359225]
[1770135414347,2.4642905,2273.2,2272.2,0.00328687]
[1770135414543,2.4642905,2273.2,2272.2,2.43920937]
[1770135414745,0.00360937,2273.3,2272.2,2.43920937]
[1770135415747,2.46789987,2273.3,2272.2,0.00328687]
[1770135416148,2.46789987,2273.3,2271.4,2.4359225]
[1770135416444,2.6844605,2273.1,2271.4,2.4359225]
[1770135417349,2.6844605,2273.1,2271.4,2.43903119]
[1770135417547,0.00360937,2273.3,2271.4,2.43903119]
[1770135417944,2.46789987,2273.3,2271.7,2.4359225]
[1770135418354,0.00360937,2273.3,2271.7,6.8329225]
[1770135418555,0.00360937,2273.3,2271.8,2.4359225]
[1770135419749,0.00360937,2273.3,2271.8,2.6562125]
[1770135420557,0.40076675,2273.8,2272.1,2.4359225]
[1770135420854,2.6844205,2273.6,2272.1,2.4359225]
[1770135421051,2.6845105,2272.6,2271.4,0.00310869]
[1770135421248,0.22033,2271.5,2269.6,2.4359225]
[1770135421453,0.22033,2271.5,2269.3,2.579]
[1770135421454,2.4642905,2272.1,2270.2,2.4359225]
[1770135421649,5.73914985,2274.7,2270.2,2.4359225]
[1770135421650,2.4642905,2273.1,2271.1,2.4359225]
[1770135421856,2.4642905,2273.1,2271.3,2.4359225]
[1770135422059,40.8,2273.4,2271.5,2.4359225]
[1770135422253,2.46798661,2273.4,2271.9,2.4359225]
[1770135422552,2.4642905,2272.6,2271.5,0.00536909]
[1770135422752,2.6845405,2272.3,2270.8,9.4149225]
[1770135422953,2.4642905,2272.3,2270.9,2.4359225]
[1770135423355,2.4642905,2272.3,2271.0,2.4359225]
[1770135423855,2.4642905,2272.3,2271.0,2.44037345]
[1770135424252,2.4642905,2272.3,2271.1,2.4359225]
[1770135424658,40.8,2272.5,2271.1,2.4359225]
[1770135424962,2.4642905,2273.0,2271.4,2.4359225]